fUST/lending_fUST_20240612
["ID","MTS","AMOUNT","RATE_DAILY","PERIOD"]
[329152563,1718140268403,-891.806029,0.00019726,2]
[329152564,1718140268420,-891.806029,0.00019726,2]
[329152565,1718140268433,-500.0,0.00019726,2]
[329152566,1718140268450,-2170.955403,0.00019726,2]
[329152567,1718140268465,-2170.955403,0.00019726,2]
[329152568,1718140268484,-500.0,0.00019726,2]
[329152569,1718140268497,-500.0,0.00019726,2]
[329152570,1718140268508,-2170.955403,0.00019726,2]
[329152571,1718140268535,-2170.955403,0.00019726,2]
[329152572,1718140268547,-500.0,0.00019726,2]
[329152573,1718140268558,-224.375132,0.00019726,2]
[329152574,1718140268568,-224.375132,0.00019726,2]
[329152575,1718140268578,-224.375132,0.00019726,2]
[329152576,1718140268588,-224.375132,0.00019726,2]
[329152577,1718140268598,-200.78800434,0.00019726,2]
[329152578,1718140268608,-500.45688317,0.00019726,2]
[329152579,1718140268618,-502.022016,0.00019726,2]
[329152580,1718140268627,-500.0,0.00019726,2]
[329152581,1718140268637,-500.0,0.00019726,2]
[329152582,1718140268647,-1274.14,0.00019726,2]
[329152583,1718140268657,-151.0,0.00019726,2]
[329152584,1718140268667,-151.0,0.00019726,2]
[329152585,1718140268677,-500.0,0.00019726,2]
[329152586,1718140268687,-500.0,0.00019726,2]
[329152587,1718140268697,-500.0,0.00019726,2]
[329152588,1718140268707,-2246.988983,0.00019726,2]
[329152589,1718140268718,-2246.988983,0.00019726,2]
[329152590,1718140268728,-500.0,0.00019726,2]
[329152591,1718140268738,-2246.988983,0.00019726,2]
[329152592,1718140268748,-433.46261431,0.00019726,2]
[329152593,1718140268822,-2246.988983,0.00019726,2]
[329152594,1718140268832,-10100.07,0.00019726,2]
[329152595,1718140268842,-500.0,0.00019726,2]
[329152596,1718140268858,-500.0,0.00019726,2]
[329152597,1718140268868,-500.0,0.00019726,2]
[329152598,1718140268878,-500.0,0.00019726,2]
[329152599,1718140268889,-500.0,0.00019726,2]
[329152600,1718140268901,-817.53,0.00019726,2]
[329152601,1718140268911,-151.0,0.00019726,2]
[329152602,1718140268921,-156.172827,0.00019726,2]
[329152603,1718140268935,-500.0,0.00019726,2]
[329152604,1718140268945,-595.149395,0.00019726,2]
[329152605,1718140268956,-595.149395,0.00019726,2]
[329152606,1718140268966,-151.0,0.00019726,2]
[329152607,1718140268977,-156.416343,0.00019726,2]
[329152608,1718140268986,-500.0,0.00019726,2]
[329152609,1718140268996,-859.33,0.00019726,2]
[329152610,1718140269006,-595.149395,0.00019726,2]
[329152611,1718140269016,-595.149395,0.00019726,2]
[329152612,1718140269027,-500.0,0.00019726,2]
[329152613,1718140269037,-500.0,0.00019726,2]
[329152614,1718140269047,-587.55689518,0.00019726,2]
[329152615,1718140269057,-1655.39,0.00019726,2]
[329152616,1718140269066,-500.0,0.00019726,2]
[329152617,1718140269076,-502.44,0.00019726,2]
[329152618,1718140269086,-500.0,0.00019726,2]
[329152619,1718140269097,-500.0,0.00019726,2]
[329152620,1718140269106,-500.0,0.00019726,2]
[329152621,1718140269116,-500.0,0.00019726,2]
[329152622,1718140269127,-372.426328,0.00019726,2]
[329152623,1718140269137,-372.426328,0.00019726,2]
[329152624,1718140269147,-500.0,0.00019726,2]
[329152625,1718140269157,-166.060406,0.00019726,2]
[329152626,1718140269167,-166.060406,0.00019726,2]
[329152627,1718140269177,-638.07,0.00019726,2]
[329152628,1718140269188,-372.426328,0.00019726,2]
[329152629,1718140269199,-166.060406,0.00019726,2]
[329152630,1718140269217,-166.060406,0.00019726,2]
[329152631,1718140269231,-500.0,0.00019726,2]
[329152632,1718140269249,-372.426328,0.00019726,2]
[329152633,1718140269260,-500.0,0.00019726,2]
[329152634,1718140269270,-500.0,0.00019726,2]
[329152635,1718140269280,-500.0,0.00019726,2]
[329152636,1718140269291,-7330.04,0.00019726,2]
[329152637,1718140269301,-500.0,0.00019726,2]
[329152638,1718140269312,-500.0,0.00019726,2]
[329152639,1718140269332,-500.0,0.00019726,2]
[329152640,1718140269343,-568.7,0.00019726,2]
[329152641,1718140269353,-500.0,0.00019726,2]
[329152642,1718140269365,-2649.534284,0.00019726,2]
[329152643,1718140269385,-2649.534284,0.00019726,2]
[329152644,1718140269399,-500.0,0.00019726,2]
[329152645,1718140269420,-2649.534284,0.00019726,2]
[329152646,1718140269430,-2649.534284,0.00019726,2]
[329152647,1718140269441,-500.0,0.00019726,2]
[329152648,1718140269466,-500.0,0.00019726,2]
[329152649,1718140269482,-500.0,0.00019726,2]
[329152650,1718140269494,-1440.73,0.00019726,2]
[329152651,1718140269510,-500.0,0.00019726,2]
[329152652,1718140269523,-500.0,0.00019726,2]
[329152653,1718140269534,-3576.6,0.00019726,2]
[329152654,1718140269554,-630.63637782,0.00019726,2]
[329152655,1718140269567,-500.0,0.00019726,2]
[329152656,1718140269578,-500.0,0.00019726,2]
[329152657,1718140269592,-500.0,0.00019726,2]
[329152658,1718140269608,-500.0,0.00019726,2]
[329152659,1718140269620,-500.0,0.00019726,2]
[329152660,1718140269630,-500.0,0.00019726,2]
[329152661,1718140269645,-168.08187762,0.00019726,2]
[329152662,1718140269655,-500.0,0.00019726,2]
[329152663,1718140269666,-552.0,0.00019726,2]
[329152664,1718140269676,-500.0,0.00019726,2]
[329152665,1718140269687,-500.0,0.00019726,2]
[329152666,1718140269697,-644.8,0.00019726,2]
[329152667,1718140269707,-1273.3,0.00019726,2]
[329152668,1718140269716,-500.0,0.00019726,2]
[329152669,1718140269727,-500.0,0.00019726,2]
[329152670,1718140269743,-500.0,0.00019726,2]
[329152671,1718140269754,-500.0,0.00019726,2]
[329152672,1718140269766,-500.0,0.00019726,2]
[329152673,1718140269777,-2146.18,0.00019726,2]
[329152674,1718140269787,-500.0,0.00019726,2]
[329152675,1718140269798,-2590.95,0.00019726,2]
[329152676,1718140269808,-500.0,0.00019726,2]
[329152677,1718140269818,-500.0,0.00019726,2]
[329152678,1718140269834,-500.0,0.00019726,2]
[329152679,1718140269867,-500.0,0.00019726,2]
[329152680,1718140269891,-500.0,0.00019726,2]
[329152681,1718140269907,-778.711668,0.00019726,2]
[329152682,1718140269919,-151.0,0.00019726,2]
[329152683,1718140269933,-500.0,0.00019726,2]
[329152684,1718140269947,-778.711668,0.00019726,2]
[329152685,1718140269961,-500.0,0.00019726,2]
[329152686,1718140269976,-506.76649597,0.00019726,2]
[329152687,1718140269988,-500.0,0.00019726,2]
[329152688,1718140270001,-151.0,0.00019726,2]
[329152689,1718140270014,-158.055145,0.00019726,2]
[329152690,1718140270033,-500.0,0.00019726,2]
[329152691,1718140270057,-500.0,0.00019726,2]
[329152692,1718140270077,-548.51672985,0.00019726,2]
[329152693,1718140270096,-500.0,0.00019726,2]
[329152694,1718140270109,-500.0,0.00019726,2]
[329152695,1718140270133,-151.0,0.00019726,2]
[329152696,1718140270168,-151.0,0.00019726,2]
[329152697,1718140270184,-502.83063486,0.00019726,2]
[329152698,1718140270195,-626.31,0.00019726,2]
[329152699,1718140270279,-500.0,0.00019726,2]
[329152700,1718140270292,-151.0,0.00019726,2]
[329152701,1718140270309,-500.0,0.00019726,2]
[329152702,1718140270321,-500.0,0.00019726,2]
[329152703,1718140270337,-229.355019,0.00019726,2]
[329152704,1718140270351,-500.0,0.00019726,2]
[329152705,1718140270396,-500.0,0.00019726,2]
[329152706,1718140270422,-500.0,0.00019726,2]
[329152707,1718140270433,-500.0,0.00019726,2]
[329152708,1718140270459,-500.0,0.00019726,2]
[329152709,1718140270481,-500.0,0.00019726,2]
[329152710,1718140270508,-500.0,0.00019726,2]
[329152711,1718140270530,-500.0,0.00019726,2]
[329152712,1718140270571,-710.98,0.00019726,2]
[329152713,1718140270594,-500.0,0.00019726,2]
[329152714,1718140270619,-500.0,0.00019726,2]
[329152715,1718140270635,-500.0,0.00019726,2]
[329152716,1718140270646,-500.0,0.00019726,2]
[329152717,1718140270661,-500.0,0.00019726,2]
[329152718,1718140270674,-6246.52,0.00019726,2]
[329152719,1718140270688,-500.0,0.00019726,2]
[329152720,1718140270699,-500.0,0.00019726,2]
[329152721,1718140270711,-500.0,0.00019726,2]
[329152722,1718140270723,-500.0,0.00019726,2]
[329152723,1718140270735,-500.0,0.00019726,2]
[329152724,1718140270746,-151.0,0.00019726,2]
[329152725,1718140270759,-151.0,0.00019726,2]
[329152726,1718140270770,-2084.35,0.00019726,2]
[329152727,1718140270781,-500.0,0.00019726,2]
[329152728,1718140270792,-730.93,0.00019726,2]
[329152729,1718140270803,-320.976962,0.00019726,2]
[329152730,1718140270819,-3303.74,0.00019726,2]
[329152731,1718140270831,-320.976962,0.00019726,2]
[329152732,1718140270842,-500.0,0.00019726,2]
[329152733,1718140270857,-500.0,0.00019726,2]
[329152734,1718140270870,-500.0,0.00019726,2]
[329152735,1718140270886,-500.0,0.00019726,2]
[329152736,1718140270903,-320.976962,0.00019726,2]
[329152737,1718140270914,-500.0,0.00019726,2]
[329152738,1718140270928,-320.976962,0.00019726,2]
[329152739,1718140270939,-500.0,0.00019726,2]
[329152740,1718140270952,-500.0,0.00019726,2]
[329152741,1718140270964,-151.0,0.00019726,2]
[329152742,1718140270976,-151.0,0.00019726,2]
[329152743,1718140270989,-352.58960664,0.00019726,2]
[329152744,1718140271000,-1000.0,0.00019738,2]
[329152745,1718140271011,-988.01671638,0.00019744,2]
[329152746,1718140271023,-75842.0,0.0001977,2]
[329152747,1718140271035,-151.0,0.0001977,2]
[329152748,1718140271052,-206.920778,0.0001977,2]
[329152749,1718140271072,-206.920778,0.0001977,2]
[329152750,1718140271091,-151.0,0.0001977,2]
[329152751,1718140271110,-1961.25983,0.0001977,2]
[329152752,1718140271132,-1961.25983,0.0001977,2]
[329152753,1718140271150,-778.711668,0.0001977,2]
[329152754,1718140271170,-151.0,0.0001977,2]
[329152755,1718140271185,-778.711668,0.0001977,2]
[329152756,1718140271202,-156.27169823,0.00019799,3]
[329152757,1718140271234,-302.0516616,0.00019801,2]
[329152758,1718140271256,-300.0,0.00019861,2]
[329152759,1718140271270,-1227.121209,0.0001987,2]
[329152760,1718140271286,-1227.121209,0.0001987,2]
[329152761,1718140271306,-593.0,0.000199,2]
[329152762,1718140271324,-160.0,0.00019973,2]
[329152763,1718140271339,-638.5628782,0.00019993,2]
[329152764,1718140271354,-797.92,0.00019997,2]
[329152765,1718140271370,-9588.50838645,0.00019998,2]
[329152766,1718140271386,-151.0,0.00019998,2]
[329152767,1718140271400,-151.0,0.00019998,2]
[329152768,1718140271416,-151.0,0.00019999,2]
[329152769,1718140271433,-151.0,0.00019999,2]
[329152770,1718140271450,-797.92,0.00019999,2]
[329152771,1718140271465,-797.92,0.00019999,2]
[329152772,1718140271482,-797.92,0.00019999,2]
[329152773,1718140271497,-797.92,0.00019999,2]
[329152774,1718140271513,-798.08260421,0.00019999,2]
[329152775,1718140271529,-25958.78759473,0.0002,2]
[329152776,1718140271545,-9502.43188347,0.0002,2]
[329152777,1718140271561,-34406.22666056,0.0002,2]
[329152778,1718140271578,-932.870483,0.0002,2]
[329152779,1718140271595,-435.0,0.0002,2]
[329152780,1718140271610,-13483.94434315,0.0002,2]
[329152781,1718140271626,-529.07913635,0.0002,4]
[329152782,1718140271640,-157.67879839,0.0002,2]
[329152783,1718140271655,-254.0,0.0002,2]
[329152784,1718140271671,-160.0,0.0002,2]
[329152785,1718140271685,-160.0,0.0002,2]
[329152786,1718140271696,-1107.29588557,0.0002,2]
[329152787,1718140271706,-1000.0,0.0002,12]
[329152788,1718140271718,-61214.17836838,0.0002,2]
[329152789,1718140271732,-151.0,0.0002,2]
[329152790,1718140271745,-151.0,0.0002,2]
[329152791,1718140271757,-151.0,0.0002,2]
[329152792,1718140271767,-151.0,0.0002,2]
[329152793,1718140271778,-500.0,0.0002,2]
[329152794,1718140271789,-500.0,0.0002,2]
[329152795,1718140271801,-151.0,0.0002,2]
[329152796,1718140271814,-151.0,0.0002,2]
[329152797,1718140271958,-155.01085076,0.0002,2]
[329152798,1718140271977,-500.0,0.0002,2]
[329152799,1718140271990,-151.0,0.0002,2]
[329152800,1718140272001,-232.46269,0.0002,2]
[329152801,1718140272011,-500.0,0.0002,2]
[329152802,1718140272022,-151.0,0.0002,2]
[329152803,1718140272033,-151.0,0.0002,2]
[329152804,1718140272044,-500.0,0.0002,2]
[329152805,1718140272054,-500.0,0.0002,2]
[329152806,1718140272065,-500.0,0.0002,2]
[329152807,1718140272075,-500.0,0.0002,2]
[329152808,1718140272085,-500.0,0.0002,2]
[329152809,1718140272096,-500.0,0.0002,2]
[329152810,1718140272107,-500.0,0.0002,2]
[329152811,1718140272117,-500.0,0.0002,2]
[329152812,1718140272128,-500.0,0.0002,2]
[329152813,1718140272138,-500.0,0.0002,2]
[329152814,1718140272148,-500.0,0.0002,2]
[329152815,1718140272159,-500.0,0.0002,2]
[329152816,1718140272170,-500.0,0.0002,2]
[329152817,1718140272181,-500.0,0.0002,2]
[329152818,1718140272191,-500.0,0.0002,2]
[329152819,1718140272202,-500.0,0.0002,4]
[329152820,1718140272232,-500.0,0.0002,2]
[329152821,1718140272243,-500.0,0.0002,2]
[329152822,1718140272254,-581.27,0.0002,2]
[329152823,1718140272265,-644.83861826,0.0002,2]
[329152824,1718140272277,-500.0,0.0002,2]
[329152825,1718140272288,-500.0,0.0002,2]
[329152826,1718140272299,-500.0,0.0002,2]
[329152827,1718140272310,-500.0,0.0002,2]
[329152828,1718140272321,-500.0,0.0002,2]
[329152829,1718140272333,-500.0,0.0002,2]
[329152830,1718140272344,-500.0,0.0002,2]
[329152831,1718140272356,-500.0,0.0002,2]
[329152832,1718140272367,-500.0,0.0002,2]
[329152833,1718140272378,-523.1117152,0.0002,2]
[329152834,1718140272388,-500.0,0.0002,2]
[329152835,1718140272399,-500.0,0.0002,2]
[329152836,1718140272410,-151.0,0.0002,2]
[329152837,1718140272422,-500.0,0.0002,2]
[329152838,1718140272434,-509.45263125,0.0002,2]
[329152839,1718140272445,-151.0,0.0002,2]
[329152840,1718140272456,-151.0,0.0002,2]
[329152841,1718140272467,-500.0,0.0002,2]
[329152842,1718140272478,-769.621893,0.0002,2]
[329152843,1718140272491,-769.621893,0.0002,2]
[329152844,1718140272501,-500.0,0.0002,2]
[329152845,1718140272511,-769.621893,0.0002,2]
[329152846,1718140272522,-500.0,0.0002,2]
[329152847,1718140272532,-500.0,0.0002,2]
[329152848,1718140272541,-769.621893,0.0002,2]
[329152849,1718140272551,-769.621893,0.0002,2]
[329152850,1718140272561,-151.0,0.0002,2]
[329152851,1718140272571,-769.621893,0.0002,2]
[329152852,1718140272581,-151.0,0.0002,2]
[329152853,1718140272591,-500.0,0.0002,2]
[329152854,1718140272601,-151.0,0.0002,2]
[329152855,1718140272611,-500.0,0.0002,2]
[329152856,1718140272621,-500.0,0.0002,2]
[329152857,1718140272631,-209.30122372,0.0002,2]
[329152858,1718140272641,-500.0,0.0002,2]
[329152859,1718140272652,-500.0,0.0002,2]
[329152860,1718140272662,-500.0,0.0002,2]
[329152861,1718140272672,-500.0,0.0002,2]
[329152862,1718140272682,-581.89883348,0.0002,2]
[329152863,1718140272692,-500.0,0.0002,2]
[329152864,1718140272702,-241.01150424,0.0002,2]
[329152865,1718140272712,-500.0,0.0002,2]
[329152866,1718140272723,-500.0,0.0002,2]
[329152867,1718140272733,-500.0,0.0002,2]
[329152868,1718140272743,-500.0,0.0002,2]
[329152869,1718140272753,-500.0,0.0002,2]
[329152870,1718140272763,-526.20611635,0.0002,2]
[329152871,1718140272773,-500.0,0.0002,2]
[329152872,1718140272783,-500.0,0.0002,2]
[329152873,1718140272793,-500.0,0.0002,2]
[329152874,1718140272803,-500.0,0.0002,2]
[329152875,1718140272813,-569.01,0.0002,2]
[329152876,1718140272823,-500.0,0.0002,2]
[329152877,1718140272833,-320.18843397,0.0002,2]
[329152878,1718140272844,-500.0,0.0002,2]
[329152879,1718140272858,-500.0,0.0002,2]
[329152880,1718140272869,-1227.121209,0.0002,2]
[329152881,1718140272879,-1227.121209,0.0002,2]
[329152882,1718140272891,-1227.121209,0.0002,2]
[329152883,1718140272902,-1227.121209,0.0002,2]
[329152884,1718140272912,-500.0,0.0002,2]
[329152885,1718140272923,-3455.88,0.0002,2]
[329152886,1718140272935,-509.49331624,0.0002,2]
[329152887,1718140272946,-500.0,0.0002,2]
[329152888,1718140272957,-500.0,0.0002,2]
[329152889,1718140272967,-500.0,0.0002,2]
[329152890,1718140272978,-505.75721366,0.0002,2]
[329152891,1718140272989,-500.0,0.0002,2]
[329152892,1718140272999,-500.0,0.0002,2]
[329152893,1718140273009,-525.45222054,0.0002,2]
[329152894,1718140273019,-518.53561094,0.0002,2]
[329152895,1718140273031,-500.0,0.0002,2]
[329152896,1718140273042,-500.0,0.0002,2]
[329152897,1718140273052,-500.0,0.0002,2]
[329152898,1718140273062,-500.0,0.0002,2]
[329152899,1718140273073,-431.18,0.0002,2]
[329152900,1718140273083,-500.0,0.0002,2]
[329152901,1718140273093,-500.0,0.0002,2]
[329152902,1718140273103,-151.0,0.0002,2]
[329152903,1718140273114,-151.0,0.0002,2]
[329152904,1718140273124,-500.0,0.0002,2]
[329152905,1718140273135,-500.0,0.0002,2]
[329152906,1718140273145,-500.0,0.0002,2]
[329152907,1718140273155,-500.0,0.0002,2]
[329152908,1718140273166,-500.0,0.0002,2]
[329152909,1718140273176,-500.0,0.0002,2]
[329152910,1718140273187,-823.52,0.0002,2]
[329152911,1718140273198,-500.0,0.0002,2]
[329152912,1718140273218,-526.93029764,0.0002,2]
[329152913,1718140273236,-500.0,0.0002,2]
[329152914,1718140273246,-500.0,0.0002,2]
[329152915,1718140273257,-206.920778,0.0002,2]
[329152916,1718140273267,-206.920778,0.0002,2]
[329152917,1718140273278,-500.0,0.0002,2]
[329152918,1718140273289,-206.920778,0.0002,2]
[329152919,1718140273299,-206.920778,0.0002,2]
[329152920,1718140273310,-500.0,0.0002,2]
[329152921,1718140273321,-500.0,0.0002,2]
[329152922,1718140273331,-500.0,0.0002,2]
[329152923,1718140273341,-500.0,0.0002,2]
[329152924,1718140273352,-500.0,0.0002,2]
[329152925,1718140273363,-151.0,0.0002,2]
[329152926,1718140273373,-151.0,0.0002,2]
[329152927,1718140273384,-500.0,0.0002,2]
[329152928,1718140273394,-500.0,0.0002,2]
[329152929,1718140273404,-1961.25983,0.0002,2]
[329152930,1718140273415,-1961.25983,0.0002,2]
[329152931,1718140273426,-891.806029,0.0002,2]
[329152932,1718140273436,-891.806029,0.0002,2]
[329152933,1718140273447,-891.806029,0.0002,2]
[329152934,1718140273457,-500.0,0.0002,2]
[329152935,1718140273467,-1961.25983,0.0002,2]
[329152936,1718140273478,-1961.25983,0.0002,2]
[329152937,1718140273490,-891.806029,0.0002,2]
[329152938,1718140273500,-891.806029,0.0002,2]
[329152939,1718140273510,-891.806028,0.0002,2]
[329152940,1718140273521,-500.0,0.0002,2]
[329152941,1718140273532,-2170.955403,0.0002,2]
[329152942,1718140273542,-500.0,0.0002,2]
[329152943,1718140273553,-2170.955403,0.0002,2]
[329152944,1718140273563,-2170.955403,0.0002,2]
[329152945,1718140273573,-500.0,0.0002,2]
[329152946,1718140273584,-2170.955403,0.0002,2]
[329152947,1718140273595,-500.0,0.0002,2]
[329152948,1718140273606,-2170.955403,0.0002,2]
[329152949,1718140273617,-2170.955402,0.0002,2]
[329152950,1718140273627,-224.375132,0.0002,2]
[329152951,1718140273638,-224.375132,0.0002,2]
[329152952,1718140273649,-224.375132,0.0002,2]
[329152953,1718140273659,-171.678656,0.0002,2]
[329152954,1718140273670,-224.375132,0.0002,2]
[329152955,1718140273681,-224.375132,0.0002,2]
[329152956,1718140273691,-224.375132,0.0002,2]
[329152957,1718140273702,-500.0,0.0002,2]
[329152958,1718140273713,-500.0,0.0002,2]
[329152959,1718140273723,-1274.14,0.0002,2]
[329152960,1718140273734,-151.0,0.0002,2]
[329152961,1718140273745,-151.0,0.0002,2]
[329152962,1718140273755,-500.0,0.0002,2]
[329152963,1718140273766,-500.0,0.0002,2]
[329152964,1718140273776,-500.0,0.0002,2]
[329152965,1718140273787,-2246.988983,0.0002,2]
[329152966,1718140273798,-2246.988983,0.0002,2]
[329152967,1718140273808,-2246.988983,0.0002,2]
[329152968,1718140273819,-500.0,0.0002,2]
[329152969,1718140273831,-2246.988983,0.0002,2]
[329152970,1718140273841,-2246.988983,0.0002,2]
[329152971,1718140273855,-2246.988989,0.0002,2]
[329152972,1718140273865,-10100.07,0.0002,2]
[329152973,1718140273876,-500.0,0.0002,2]
[329152974,1718140273887,-500.0,0.0002,2]
[329152975,1718140273897,-500.0,0.0002,2]
[329152976,1718140273908,-500.0,0.0002,2]
[329152977,1718140273919,-500.0,0.0002,2]
[329152978,1718140273932,-817.53,0.0002,2]
[329152979,1718140273943,-500.0,0.0002,2]
[329152980,1718140273954,-595.149395,0.0002,2]
[329152981,1718140273964,-595.149395,0.0002,2]
[329152982,1718140273975,-595.149395,0.0002,2]
[329152983,1718140273986,-500.0,0.0002,2]
[329152984,1718140273998,-859.33,0.0002,2]
[329152985,1718140274012,-595.149395,0.0002,2]
[329152986,1718140274023,-493.4799678,0.0002,2]
[329152987,1718140274035,-511.0796972,0.0002,2]
[329152988,1718140274045,-595.149395,0.0002,2]
[329152989,1718140274056,-595.14939,0.0002,2]
[329152990,1718140274066,-1655.39,0.0002,2]
[329152991,1718140274077,-502.44,0.0002,2]
[329152992,1718140274087,-500.0,0.0002,2]
[329152993,1718140274098,-500.0,0.0002,2]
[329152994,1718140274109,-500.0,0.0002,2]
[329152995,1718140274119,-500.0,0.0002,2]
[329152996,1718140274130,-372.426328,0.0002,2]
[329152997,1718140274140,-372.426328,0.0002,2]
[329152998,1718140274152,-479.17777403,0.0002,2]
[329152999,1718140274312,-151.0,0.00019178,2]
[329153000,1718140274323,-20.82222597,0.0002,2]
[329153001,1718140274333,-372.426328,0.0002,2]
[329153002,1718140274343,-166.060406,0.0002,2]
[329153003,1718140274353,-166.060406,0.0002,2]
[329153004,1718140274363,-166.060406,0.0002,2]
[329153005,1718140274373,-638.07,0.0002,2]
[329153006,1718140274385,-166.060406,0.0002,2]
[329153007,1718140274396,-166.060406,0.0002,2]
[329153008,1718140274406,-372.426328,0.0002,2]
[329153009,1718140274417,-166.060398,0.0002,2]
[329153010,1718140274427,-372.426328,0.0002,2]
[329153011,1718140274439,-372.42633,0.0002,2]
[329153012,1718140274451,-500.0,0.0002,2]
[329153013,1718140274462,-500.0,0.0002,2]
[329153014,1718140274474,-500.0,0.0002,2]
[329153015,1718140274485,-7330.04,0.0002,2]
[329153016,1718140274496,-500.0,0.0002,2]
[329153017,1718140274507,-500.0,0.0002,2]
[329153018,1718140274518,-500.0,0.0002,2]
[329153019,1718140274528,-568.7,0.0002,2]
[329153020,1718140274539,-500.0,0.0002,2]
[329153021,1718140274550,-2649.534284,0.0002,2]
[329153022,1718140274560,-2649.534284,0.0002,2]
[329153023,1718140274570,-1838.34112442,0.0002,2]
[329153024,1718140275604,-392.1959995,0.00019078,2]
[329153025,1718140275619,-464.47875686,0.00019078,2]
[329153026,1718140275629,-3.34407057,0.00019176,2]
[329153027,1718140286354,1000.0,9.88e-05,2]
[329153029,1718141089433,1000.0,0.000226,29]
[329153038,1718141433765,-10544.36124938,0.00017549,2]
[329153040,1718141433775,-20155.22061253,0.00017607,2]
[329153053,1718141433979,-316.23475701,0.00017607,2]
[329153071,1718141439254,-4428.54463046,0.00017607,2]
[329153073,1718141439268,-206.318359,0.0001765,2]
[329153075,1718141439293,-237.7217704,0.000189,2]
[329153077,1718141439314,-1000.0,0.00018941,2]
[329153080,1718141439336,-237.72177039,0.00018989,2]
[329153081,1718141439349,-500.0,0.00019,7]
[329153083,1718141439360,-500.0,0.00019,7]
[329153086,1718141439382,-500.0,0.00019,7]
[329153087,1718141439397,-500.0,0.00019,7]
[329153089,1718141439411,-500.0,0.00019,7]
[329153091,1718141439427,-500.0,0.00019,7]
[329153093,1718141439438,-343.72,0.00019,7]
[329153095,1718141439471,-7269.5959632,0.00019,2]
[329153097,1718141439485,-237.72177039,0.00019078,2]
[329153098,1718141439510,-1000.0,0.00019109,2]
[329153099,1718141439526,-1000.0,0.00019167,2]
[329153101,1718141439538,-988.01671638,0.00019169,2]
[329153102,1718141439549,-602.81221035,0.00019176,2]
[329153103,1718141439566,-162.98647862,0.00019176,2]
[329153104,1718141439577,-317.21490521,0.00019176,2]
[329153105,1718141439601,-1099.34634178,0.00019176,2]
[329153106,1718141439616,-1954.74414678,0.00019176,2]
[329153107,1718141439634,-157.62547626,0.00019176,2]
[329153108,1718141439650,-3374.81341595,0.00019176,2]
[329153109,1718141439669,-2875.96569708,0.00019176,2]
[329153110,1718141439684,-236.95891892,0.00019176,2]
[329153111,1718141439696,-156.75739686,0.00019176,2]
[329153112,1718141439713,-380.14396837,0.00019177,2]
[329153113,1718141439728,-7918.32867576,0.00019177,2]
[329153114,1718141439740,-3000.0,0.00019177,2]
[329153115,1718141439753,-3000.0,0.00019177,2]